[Event "Titled Tuesday Blitz August 08 Late 2023"]
[White "Ballester Llagaria, Luis Eduardo"]
[Black "De Souza, Cristiano Gomes"]
[WhiteFideId "2297620"]
[BlackFideId "2151758"]
[WhiteElo "2550"]
[BlackElo "2231"]
[Result "1/2-1/2"]
[Round "1"]
[TimeControl "180+1"]
[Date "2023.08.08"]
[WhiteClock "0:00:11"]
[BlackClock "0:00:52"]
[Board "164"]

1. e4 {[%clk 0:02:59]}  c5 {[%clk 0:02:59]} 2. Nc3 {[%clk 0:02:59]}  d6 {[%clk 0:02:59]} 3. d4 {[%clk 0:02:59]}  cxd4 {[%clk 0:02:59]} 4. Qxd4 {[%clk 0:03:00]}  Nc6 {[%clk 0:02:59]} 5. Qd2 {[%clk 0:03:00]}  g6 {[%clk 0:02:58]} 6. b3 {[%clk 0:03:01]}  Bg7 {[%clk 0:02:58]} 7. Bb2 {[%clk 0:03:01]}  Nf6 {[%clk 0:02:58]} 8. O-O-O {[%clk 0:03:01]}  Be6 {[%clk 0:02:57]} 9. h4 {[%clk 0:03:01]}  h5 {[%clk 0:02:56]} 10. Nge2 {[%clk 0:03:00]}  O-O {[%clk 0:02:53]} 11. Nf4 {[%clk 0:03:00]}  Qc8 {[%clk 0:02:51]} 12. Nxe6 {[%clk 0:02:59]}  fxe6 {[%clk 0:02:50]} 13. f3 {[%clk 0:02:56]}  Kh7 {[%clk 0:02:48]} 14. Kb1 {[%clk 0:02:56]}  e5 {[%clk 0:02:47]} 15. Bc4 {[%clk 0:02:56]}  a6 {[%clk 0:02:45]} 16. g4 {[%clk 0:02:52]}  Nd4 {[%clk 0:02:42]} 17. g5 {[%clk 0:02:25]}  Nd7 {[%clk 0:02:37]} 18. Rhf1 {[%clk 0:02:19]}  Nxf3 {[%clk 0:02:28]} 19. Qe3 {[%clk 0:02:15]}  Nd4 {[%clk 0:02:27]} 20. Rxf8 {[%clk 0:02:06]}  Qxf8 {[%clk 0:02:26]} 21. Rf1 {[%clk 0:02:07]}  Qd8 {[%clk 0:02:25]} 22. Ne2 {[%clk 0:01:58]}  Nxe2 {[%clk 0:02:24]} 23. Qxe2 {[%clk 0:01:59]}  Rc8 {[%clk 0:02:21]} 24. Rf7 {[%clk 0:01:24]}  Nc5 {[%clk 0:02:13]} 25. Qf3 {[%clk 0:01:21]}  Qh8 {[%clk 0:01:56]} 26. Rxe7 {[%clk 0:01:14]}  Rf8 {[%clk 0:01:55]} 27. Rf7 {[%clk 0:01:12]}  Rxf7 {[%clk 0:01:55]} 28. Qxf7 {[%clk 0:01:05]}  Qf8 {[%clk 0:01:53]} 29. Qxf8 {[%clk 0:01:02]}  Bxf8 {[%clk 0:01:52]} 30. Bd5 {[%clk 0:01:03]}  b6 {[%clk 0:01:48]} 31. b4 {[%clk 0:00:56]}  Nd7 {[%clk 0:01:46]} 32. Bc6 {[%clk 0:00:45]}  Nb8 {[%clk 0:01:45]} 33. Be8 {[%clk 0:00:45]}  Be7 {[%clk 0:01:43]} 34. c4 {[%clk 0:00:45]}  Bxg5 {[%clk 0:01:27]} 35. Bc1 {[%clk 0:00:19]}  Bxh4 {[%clk 0:01:22]} 36. Be3 {[%clk 0:00:18]}  a5 {[%clk 0:01:19]} 37. b5 {[%clk 0:00:18]}  Bg3 {[%clk 0:01:16]} 38. Bxb6 {[%clk 0:00:12]}  h4 {[%clk 0:01:16]} 39. Kc2 {[%clk 0:00:06]}  h3 {[%clk 0:01:13]} 40. Bg1 {[%clk 0:00:07]}  h2 {[%clk 0:01:09]} 41. Bxh2 {[%clk 0:00:07]}  Bxh2 {[%clk 0:01:10]} 42. c5 {[%clk 0:00:05]}  g5 {[%clk 0:01:09]} 43. Kb3 {[%clk 0:00:06]}  g4 {[%clk 0:01:09]} 44. c6 {[%clk 0:00:06]}  g3 {[%clk 0:01:06]} 45. c7 {[%clk 0:00:06]}  g2 {[%clk 0:01:02]} 46. cxb8=Q {[%clk 0:00:06]}  g1=Q {[%clk 0:01:01]} 47. Qc7+ {[%clk 0:00:06]}  Kh6 {[%clk 0:00:59]} 48. Qxd6+ {[%clk 0:00:07]}  Kg5 {[%clk 0:00:58]} 49. Qe7+ {[%clk 0:00:06]}  Kf4 {[%clk 0:00:58]} 50. Bc6 {[%clk 0:00:05]}  Qe3+ {[%clk 0:00:56]} 51. Kc4 {[%clk 0:00:05]}  Qe2+ {[%clk 0:00:55]} 52. Kd5 {[%clk 0:00:06]}  Qxa2+ {[%clk 0:00:53]} 53. Kd6 {[%clk 0:00:07]}  Qa3+ {[%clk 0:00:53]} 54. Kd7 {[%clk 0:00:07]}  Qxe7+ {[%clk 0:00:51]} 55. Kxe7 {[%clk 0:00:08]}  Bg1 {[%clk 0:00:51]} 56. Kd6 {[%clk 0:00:07]}  Bb6 {[%clk 0:00:51]} 57. Bd5 {[%clk 0:00:07]}  a4 {[%clk 0:00:52]} 58. Kc6 {[%clk 0:00:08]}  Bd4 {[%clk 0:00:52]} 59. b6 {[%clk 0:00:08]}  Bxb6 {[%clk 0:00:52]} 60. Kxb6 {[%clk 0:00:09]}  a3 {[%clk 0:00:52]} 61. Kc5 {[%clk 0:00:09]}  a2 {[%clk 0:00:53]} 62. Bxa2 {[%clk 0:00:10]}  Kxe4 {[%clk 0:00:51]} 63. Bd5+ {[%clk 0:00:10]}  Kf4 {[%clk 0:00:51]} 64. Kd6 {[%clk 0:00:11]}  e4 {[%clk 0:00:52]} 65. Bxe4 {[%clk 0:00:11]} 1/2-1/2


[Site "https://www.chess.com"]

[Event "Titled Tuesday Blitz August 08 Late 2023"]
[White "Schut, Han"]
[Black "Cremisi, Daniel"]
[WhiteFideId "1005561"]
[BlackFideId "2089882"]
[WhiteElo "2226"]
[BlackElo "2547"]
[Result "0-1"]
[Round "1"]
[TimeControl "180+1"]
[Date "2023.08.08"]
[WhiteClock "0:01:19"]
[BlackClock "0:01:49"]
[Board "165"]

1. e4 {[%clk 0:03:00]}  e6 {[%clk 0:02:59]} 2. d4 {[%clk 0:03:00]}  d5 {[%clk 0:02:59]} 3. e5 {[%clk 0:03:00]}  c5 {[%clk 0:03:00]} 4. c3 {[%clk 0:03:01]}  Nc6 {[%clk 0:03:00]} 5. Nf3 {[%clk 0:03:01]}  Qb6 {[%clk 0:03:01]} 6. Bd3 {[%clk 0:03:01]}  cxd4 {[%clk 0:03:01]} 7. O-O {[%clk 0:03:02]}  Bd7 {[%clk 0:03:01]} 8. Re1 {[%clk 0:03:02]}  Nge7 {[%clk 0:03:01]} 9. h4 {[%clk 0:03:02]}  O-O-O {[%clk 0:02:57]} 10. a3 {[%clk 0:02:50]}  Kb8 {[%clk 0:02:57]} 11. Nbd2 {[%clk 0:02:48]}  Ng6 {[%clk 0:02:54]} 12. g3 {[%clk 0:02:39]}  dxc3 {[%clk 0:02:51]} 13. bxc3 {[%clk 0:02:39]}  Bc5 {[%clk 0:02:51]} 14. Qe2 {[%clk 0:02:34]}  f6 {[%clk 0:02:50]} 15. Rb1 {[%clk 0:02:32]}  Qc7 {[%clk 0:02:49]} 16. Ba6 {[%clk 0:02:10]}  Bb6 {[%clk 0:02:45]} 17. c4 {[%clk 0:02:01]}  dxc4 {[%clk 0:02:38]} 18. Nxc4 {[%clk 0:02:00]}  Ncxe5 {[%clk 0:01:59]} 19. h5 {[%clk 0:01:44]}  Nxf3+ {[%clk 0:01:55]} 20. Qxf3 {[%clk 0:01:40]}  Bc6 {[%clk 0:01:56]} 21. Qe2 {[%clk 0:01:19]}  Qxg3+ {[%clk 0:01:49]} 0-1


[Site "https://www.chess.com"]

[Event "Titled Tuesday Blitz August 08 Late 2023"]
[White "Sarkar, Justin"]
[Black "ArtemDyachuk"]
[WhiteFideId "2010011"]
[WhiteElo "2223"]
[BlackElo "2540"]
[Result "1-0"]
[Round "1"]
[TimeControl "180+1"]
[Date "2023.08.08"]
[WhiteClock "0:00:06"]
[BlackClock "0:00:05"]
[Board "167"]

1. d4 {[%clk 0:02:45]}  Nf6 {[%clk 0:02:59]} 2. c4 {[%clk 0:02:43]}  e6 {[%clk 0:02:59]} 3. Nc3 {[%clk 0:02:40]}  c5 {[%clk 0:02:58]} 4. d5 {[%clk 0:02:39]}  exd5 {[%clk 0:02:58]} 5. cxd5 {[%clk 0:02:37]}  d6 {[%clk 0:02:58]} 6. Nf3 {[%clk 0:02:35]}  g6 {[%clk 0:02:59]} 7. Nd2 {[%clk 0:02:34]}  Bg7 {[%clk 0:02:58]} 8. e4 {[%clk 0:02:34]}  O-O {[%clk 0:02:58]} 9. Be2 {[%clk 0:02:34]}  Na6 {[%clk 0:02:57]} 10. O-O {[%clk 0:02:33]}  Nc7 {[%clk 0:02:57]} 11. f3 {[%clk 0:02:31]}  a6 {[%clk 0:02:55]} 12. a4 {[%clk 0:02:30]}  Rb8 {[%clk 0:02:55]} 13. Nc4 {[%clk 0:02:04]}  b5 {[%clk 0:02:37]} 14. Na5 {[%clk 0:01:59]}  Bd7 {[%clk 0:02:35]} 15. axb5 {[%clk 0:01:56]}  axb5 {[%clk 0:02:35]} 16. Bf4 {[%clk 0:01:51]}  b4 {[%clk 0:01:57]} 17. Na4 {[%clk 0:01:41]}  Nh5 {[%clk 0:01:52]} 18. Be3 {[%clk 0:01:06]}  Qe8 {[%clk 0:01:41]} 19. Nc4 {[%clk 0:00:40]}  Nb5 {[%clk 0:01:14]} 20. Nxc5 {[%clk 0:00:32]}  dxc5 {[%clk 0:01:04]} 21. Bxc5 {[%clk 0:00:31]}  Qd8 {[%clk 0:01:01]} 22. Bxf8 {[%clk 0:00:27]}  Bxf8 {[%clk 0:01:01]} 23. f4 {[%clk 0:00:21]}  Bc5+ {[%clk 0:00:58]} 24. Kh1 {[%clk 0:00:20]}  Nf6 {[%clk 0:00:47]} 25. Bf3 {[%clk 0:00:15]}  Nd4 {[%clk 0:00:43]} 26. e5 {[%clk 0:00:13]}  Nxf3 {[%clk 0:00:37]} 27. Qxf3 {[%clk 0:00:13]}  Ng4 {[%clk 0:00:20]} 28. e6 {[%clk 0:00:11]}  fxe6 {[%clk 0:00:14]} 29. Qxg4 {[%clk 0:00:10]}  exd5 {[%clk 0:00:15]} 30. Qe2 {[%clk 0:00:05]}  Qe8 {[%clk 0:00:08]} 31. Qxe8+ {[%clk 0:00:04]}  Rxe8 {[%clk 0:00:08]} 32. Ne5 {[%clk 0:00:03]}  Bf5 {[%clk 0:00:09]} 33. Rad1 {[%clk 0:00:02]}  Be4 {[%clk 0:00:08]} 34. h3 {[%clk 0:00:02]}  Ra8 {[%clk 0:00:08]} 35. Kh2 {[%clk 0:00:02]}  Ra2 {[%clk 0:00:07]} 36. Rd2 {[%clk 0:00:02]}  Be3 {[%clk 0:00:07]} 37. Re2 {[%clk 0:00:02]}  Bd4 {[%clk 0:00:07]} 38. Rd1 {[%clk 0:00:02]}  Bc5 {[%clk 0:00:05]} 39. Nd7 {[%clk 0:00:01]}  Be7 {[%clk 0:00:05]} 40. Nb6 {[%clk 0:00:01]}  Ra5 {[%clk 0:00:03]} 41. Nxd5 {[%clk 0:00:01]}  Bxd5 {[%clk 0:00:02]} 42. Rxe7 {[%clk 0:00:01]}  Kf8 {[%clk 0:00:02]} 43. Rd7 {[%clk 0:00:01]}  Bg8 {[%clk 0:00:01]} 44. Rd8+ {[%clk 0:00:01]}  Kg7 {[%clk 0:00:01]} 45. R1d7+ {[%clk 0:00:01]}  Bf7 {[%clk 0:00:02]} 46. Rb8 {[%clk 0:00:01]}  Kf6 {[%clk 0:00:02]} 47. Rbb7 {[%clk 0:00:01]}  Be6 {[%clk 0:00:01]} 48. Rxh7 {[%clk 0:00:01]}  Ra2 {[%clk 0:00:02]} 49. Rxb4 {[%clk 0:00:01]}  Ra1 {[%clk 0:00:01]} 50. f5 {[%clk 0:00:01]}  g5 {[%clk 0:00:02]} 51. Rb6 {[%clk 0:00:02]}  Kxf5 {[%clk 0:00:02]} 52. Rh6 {[%clk 0:00:02]}  Bd5 {[%clk 0:00:02]} 53. Rhf6+ {[%clk 0:00:03]}  Ke5 {[%clk 0:00:02]} 54. Rg6 {[%clk 0:00:03]}  Kf5 {[%clk 0:00:02]} 55. Rg7 {[%clk 0:00:03]}  Rc1 {[%clk 0:00:02]} 56. Rbg6 {[%clk 0:00:03]}  Kf4 {[%clk 0:00:01]} 57. Rxg5 {[%clk 0:00:03]}  Be4 {[%clk 0:00:02]} 58. Rg4+ {[%clk 0:00:03]}  Ke3 {[%clk 0:00:02]} 59. Re7 {[%clk 0:00:03]}  Kd3 {[%clk 0:00:02]} 60. Rexe4 {[%clk 0:00:03]}  Rb1 {[%clk 0:00:03]} 61. Rd4+ {[%clk 0:00:03]}  Ke3 {[%clk 0:00:04]} 62. Rde4+ {[%clk 0:00:04]}  Kd3 {[%clk 0:00:04]} 63. Rb4 {[%clk 0:00:04]}  Ke3 {[%clk 0:00:04]} 64. Rg3+ {[%clk 0:00:04]}  Kf2 {[%clk 0:00:04]} 65. Rf4+ {[%clk 0:00:05]}  Ke2 {[%clk 0:00:04]} 66. Rgf3 {[%clk 0:00:05]}  Kd2 {[%clk 0:00:03]} 67. Rf2+ {[%clk 0:00:05]}  Ke3 {[%clk 0:00:03]} 68. R2f3+ {[%clk 0:00:06]}  Ke2 {[%clk 0:00:04]} 69. h4 {[%clk 0:00:06]}  Rc1 {[%clk 0:00:03]} 70. h5 {[%clk 0:00:06]}  Rc5 {[%clk 0:00:04]} 71. h6 {[%clk 0:00:06]}  Rc8 {[%clk 0:00:04]} 72. Rf7 {[%clk 0:00:06]}  Rh8 {[%clk 0:00:05]} 73. h7 {[%clk 0:00:06]}  Kd2 {[%clk 0:00:06]} 74. Rg7 {[%clk 0:00:06]}  Kc2 {[%clk 0:00:06]} 75. Rh3 {[%clk 0:00:06]}  Kxb2 {[%clk 0:00:06]} 76. Rg8 {[%clk 0:00:07]}  Rxg8 {[%clk 0:00:05]} 77. hxg8=Q {[%clk 0:00:06]} 1-0


[Site "https://www.chess.com"]

[Event "Titled Tuesday Blitz August 08 Late 2023"]
[White "De Arruda, Leandro Formes"]
[Black "Czerw, Dawid"]
[WhiteFideId "22722009"]
[BlackFideId "1145746"]
[WhiteElo "2211"]
[BlackElo "2538"]
[Result "0-1"]
[Round "1"]
[TimeControl "180+1"]
[Date "2023.08.08"]
[WhiteClock "0:00:01"]
[BlackClock "0:01:30"]
[Board "169"]

1. d4 {[%clk 0:03:00]}  d5 {[%clk 0:02:59]} 2. Nf3 {[%clk 0:03:01]}  Nf6 {[%clk 0:03:00]} 3. e3 {[%clk 0:03:01]}  Bg4 {[%clk 0:02:59]} 4. Be2 {[%clk 0:03:01]}  Bxf3 {[%clk 0:02:58]} 5. Bxf3 {[%clk 0:03:02]}  e6 {[%clk 0:02:59]} 6. O-O {[%clk 0:03:02]}  Bd6 {[%clk 0:03:00]} 7. c4 {[%clk 0:03:01]}  c6 {[%clk 0:03:00]} 8. Nc3 {[%clk 0:03:02]}  O-O {[%clk 0:03:01]} 9. cxd5 {[%clk 0:03:01]}  exd5 {[%clk 0:03:01]} 10. e4 {[%clk 0:02:54]}  dxe4 {[%clk 0:03:00]} 11. Nxe4 {[%clk 0:02:55]}  Nxe4 {[%clk 0:03:00]} 12. Bxe4 {[%clk 0:02:56]}  Nd7 {[%clk 0:03:01]} 13. Be3 {[%clk 0:02:47]}  Nf6 {[%clk 0:03:00]} 14. Bf5 {[%clk 0:02:42]}  Qa5 {[%clk 0:02:59]} 15. Qc2 {[%clk 0:02:36]}  g6 {[%clk 0:02:54]} 16. Bd3 {[%clk 0:02:26]}  Rfe8 {[%clk 0:02:53]} 17. h3 {[%clk 0:02:22]}  Nd5 {[%clk 0:02:52]} 18. Bh6 {[%clk 0:02:07]}  Rad8 {[%clk 0:02:48]} 19. a3 {[%clk 0:01:46]}  Bb8 {[%clk 0:02:47]} 20. g3 {[%clk 0:01:31]}  Qc7 {[%clk 0:02:38]} 21. Bc4 {[%clk 0:01:23]}  Qe7 {[%clk 0:02:32]} 22. Rfe1 {[%clk 0:01:09]}  Qd7 {[%clk 0:02:25]} 23. Kh2 {[%clk 0:01:03]}  Qf5 {[%clk 0:02:18]} 24. Rxe8+ {[%clk 0:00:48]}  Rxe8 {[%clk 0:02:17]} 25. Qxf5 {[%clk 0:00:45]}  gxf5 {[%clk 0:02:16]} 26. Bd3 {[%clk 0:00:36]}  Re6 {[%clk 0:02:10]} 27. Bg5 {[%clk 0:00:21]}  h6 {[%clk 0:02:08]} 28. Bd2 {[%clk 0:00:17]}  a6 {[%clk 0:02:06]} 29. Kg2 {[%clk 0:00:14]}  Ba7 {[%clk 0:02:03]} 30. Bc3 {[%clk 0:00:11]}  f4 {[%clk 0:02:00]} 31. Bc4 {[%clk 0:00:10]}  fxg3 {[%clk 0:01:59]} 32. fxg3 {[%clk 0:00:09]}  Ne3+ {[%clk 0:01:59]} 33. Kf3 {[%clk 0:00:07]}  Nxc4 {[%clk 0:02:00]} 34. g4 {[%clk 0:00:05]}  Re3+ {[%clk 0:01:54]} 35. Kg2 {[%clk 0:00:05]}  Kh7 {[%clk 0:01:51]} 36. Rf1 {[%clk 0:00:04]}  Kg6 {[%clk 0:01:50]} 37. d5 {[%clk 0:00:03]}  cxd5 {[%clk 0:01:47]} 38. Rf6+ {[%clk 0:00:03]}  Kg5 {[%clk 0:01:45]} 39. Rf5+ {[%clk 0:00:02]}  Kg6 {[%clk 0:01:38]} 40. Rf6+ {[%clk 0:00:02]}  Kg7 {[%clk 0:01:31]} 41. Rxa6+ {[%clk 0:00:02]}  Rxc3 {[%clk 0:01:30]} 42. bxc3 {[%clk 0:00:01]}  bxa6 {[%clk 0:01:30]} 0-1


[Site "https://www.chess.com"]

[Event "Titled Tuesday Blitz August 08 Late 2023"]
[White "Hansen, Torbjorn Ringdal"]
[Black "Thiel, Thomas"]
[WhiteFideId "1501720"]
[BlackFideId "4615964"]
[WhiteElo "2538"]
[BlackElo "2207"]
[Result "1-0"]
[Round "1"]
[TimeControl "180+1"]
[Date "2023.08.08"]
[WhiteClock "0:01:42"]
[BlackClock "0:01:26"]
[Board "170"]

1. e4 {[%clk 0:03:00]}  d5 {[%clk 0:02:50]} 2. exd5 {[%clk 0:02:59]}  Nf6 {[%clk 0:02:49]} 3. Bb5+ {[%clk 0:02:57]}  Nbd7 {[%clk 0:02:47]} 4. Be2 {[%clk 0:02:55]}  Nxd5 {[%clk 0:02:44]} 5. d4 {[%clk 0:02:55]}  c6 {[%clk 0:02:43]} 6. Nf3 {[%clk 0:02:55]}  g6 {[%clk 0:02:42]} 7. O-O {[%clk 0:02:51]}  Bg7 {[%clk 0:02:41]} 8. c4 {[%clk 0:02:51]}  Nc7 {[%clk 0:02:40]} 9. Nc3 {[%clk 0:02:50]}  O-O {[%clk 0:02:39]} 10. Be3 {[%clk 0:02:47]}  Nf6 {[%clk 0:02:37]} 11. Qd2 {[%clk 0:02:43]}  Bf5 {[%clk 0:02:37]} 12. Rad1 {[%clk 0:02:39]}  Ne4 {[%clk 0:02:36]} 13. Nxe4 {[%clk 0:02:39]}  Bxe4 {[%clk 0:02:36]} 14. Bh6 {[%clk 0:02:37]}  Ne6 {[%clk 0:02:29]} 15. Bxg7 {[%clk 0:02:30]}  Kxg7 {[%clk 0:02:30]} 16. Ne5 {[%clk 0:02:22]}  f6 {[%clk 0:02:20]} 17. Qe3 {[%clk 0:02:06]}  Bf5 {[%clk 0:02:11]} 18. Nf3 {[%clk 0:02:01]}  Qd7 {[%clk 0:02:02]} 19. Rfe1 {[%clk 0:02:00]}  Rae8 {[%clk 0:01:55]} 20. h3 {[%clk 0:02:00]}  h5 {[%clk 0:01:53]} 21. Nh4 {[%clk 0:01:56]}  Ng5 {[%clk 0:01:46]} 22. Bd3 {[%clk 0:01:49]}  Bxd3 {[%clk 0:01:45]} 23. Qxd3 {[%clk 0:01:48]}  f5 {[%clk 0:01:26]} 24. Qg3 {[%clk 0:01:42]} 1-0


[Site "https://www.chess.com"]

[Event "Titled Tuesday Blitz August 08 Late 2023"]
[White "Petersson, Kjell"]
[Black "Droin, Augustin"]
[WhiteFideId "1705148"]
[BlackFideId "45105987"]
[WhiteElo "2198"]
[BlackElo "2535"]
[Result "0-1"]
[Round "1"]
[TimeControl "180+1"]
[Date "2023.08.08"]
[WhiteClock "0:00:14"]
[BlackClock "0:00:24"]
[Board "171"]

1. d4 {[%clk 0:02:57]}  Nf6 {[%clk 0:02:52]} 2. Bf4 {[%clk 0:02:57]}  d5 {[%clk 0:02:51]} 3. e3 {[%clk 0:02:57]}  c5 {[%clk 0:02:51]} 4. c3 {[%clk 0:02:56]}  Qb6 {[%clk 0:02:50]} 5. Qb3 {[%clk 0:02:43]}  c4 {[%clk 0:02:26]} 6. Qc2 {[%clk 0:02:42]}  Nc6 {[%clk 0:02:27]} 7. Nd2 {[%clk 0:02:35]}  g6 {[%clk 0:02:18]} 8. e4 {[%clk 0:02:34]}  Nxe4 {[%clk 0:02:02]} 9. Nxe4 {[%clk 0:02:35]}  Bf5 {[%clk 0:02:01]} 10. f3 {[%clk 0:02:24]}  dxe4 {[%clk 0:02:00]} 11. fxe4 {[%clk 0:02:22]}  e5 {[%clk 0:01:45]} 12. exf5 {[%clk 0:02:03]}  exf4 {[%clk 0:01:44]} 13. Bxc4 {[%clk 0:02:00]}  O-O-O {[%clk 0:01:41]} 14. O-O-O {[%clk 0:01:58]}  Qc7 {[%clk 0:01:33]} 15. Bd3 {[%clk 0:01:42]}  Kb8 {[%clk 0:01:31]} 16. Ne2 {[%clk 0:01:39]}  Bd6 {[%clk 0:01:30]} 17. Rhf1 {[%clk 0:01:35]}  Rhe8 {[%clk 0:01:30]} 18. Rf2 {[%clk 0:01:27]}  Re3 {[%clk 0:01:29]} 19. Rdf1 {[%clk 0:01:21]}  Rde8 {[%clk 0:01:27]} 20. a3 {[%clk 0:00:50]}  g5 {[%clk 0:01:24]} 21. Kb1 {[%clk 0:00:49]}  Na5 {[%clk 0:01:17]} 22. g3 {[%clk 0:00:41]}  fxg3 {[%clk 0:01:13]} 23. hxg3 {[%clk 0:00:41]}  Bxg3 {[%clk 0:01:13]} 24. Nxg3 {[%clk 0:00:41]}  Qxg3 {[%clk 0:01:12]} 25. f6 {[%clk 0:00:37]}  Rxd3 {[%clk 0:01:11]} 26. Rg2 {[%clk 0:00:33]}  Qe3 {[%clk 0:01:05]} 27. Rh1 {[%clk 0:00:27]}  Nc4 {[%clk 0:00:48]} 28. Rxh7 {[%clk 0:00:26]}  Rd2 {[%clk 0:00:30]} 29. Rxd2 {[%clk 0:00:25]}  Nxd2+ {[%clk 0:00:31]} 30. Ka2 {[%clk 0:00:25]}  g4 {[%clk 0:00:28]} 31. Rxf7 {[%clk 0:00:24]}  Qe6+ {[%clk 0:00:28]} 32. c4 {[%clk 0:00:21]}  Qxf7 {[%clk 0:00:27]} 33. Qxd2 {[%clk 0:00:20]}  Qxf6 {[%clk 0:00:27]} 34. d5 {[%clk 0:00:19]}  g3 {[%clk 0:00:26]} 35. d6 {[%clk 0:00:19]}  Rd8 {[%clk 0:00:25]} 36. d7 {[%clk 0:00:19]}  Qe6 {[%clk 0:00:24]} 37. Qf4+ {[%clk 0:00:18]}  Ka8 {[%clk 0:00:25]} 38. Qxg3 {[%clk 0:00:18]}  Qxc4+ {[%clk 0:00:25]} 39. Ka1 {[%clk 0:00:16]}  Rxd7 {[%clk 0:00:25]} 40. Qh3 {[%clk 0:00:14]}  Rd1# {[%clk 0:00:24]} 0-1


[Site "https://www.chess.com"]

[Event "Titled Tuesday Blitz August 08 Late 2023"]
[White "Bettalli, Francesco"]
[Black "Butti, Enrique"]
[WhiteFideId "2816453"]
[BlackFideId "3700470"]
[WhiteElo "2532"]
[BlackElo "2196"]
[Result "1-0"]
[Round "1"]
[TimeControl "180+1"]
[Date "2023.08.08"]
[WhiteClock "0:01:45"]
[BlackClock "0:02:03"]
[Board "172"]

1. e4 {[%clk 0:02:58]}  c5 {[%clk 0:02:59]} 2. Nc3 {[%clk 0:02:57]}  Nc6 {[%clk 0:02:56]} 3. Bb5 {[%clk 0:02:56]}  e6 {[%clk 0:02:55]} 4. Bxc6 {[%clk 0:02:53]}  bxc6 {[%clk 0:02:55]} 5. d3 {[%clk 0:02:54]}  d5 {[%clk 0:02:54]} 6. f4 {[%clk 0:02:54]}  Nf6 {[%clk 0:02:53]} 7. e5 {[%clk 0:02:52]}  Nd7 {[%clk 0:02:52]} 8. Nf3 {[%clk 0:02:53]}  f6 {[%clk 0:02:46]} 9. O-O {[%clk 0:02:51]}  fxe5 {[%clk 0:02:41]} 10. Nxe5 {[%clk 0:02:30]}  Nxe5 {[%clk 0:02:37]} 11. fxe5 {[%clk 0:02:31]}  g6 {[%clk 0:02:34]} 12. Qf3 {[%clk 0:02:29]}  Qe7 {[%clk 0:02:33]} 13. h4 {[%clk 0:02:21]}  Bg7 {[%clk 0:02:31]} 14. Bg5 {[%clk 0:02:21]}  Qc7 {[%clk 0:02:26]} 15. Rae1 {[%clk 0:02:19]}  Rf8 {[%clk 0:02:23]} 16. Qg3 {[%clk 0:01:57]}  Rf5 {[%clk 0:02:17]} 17. Rxf5 {[%clk 0:01:55]}  exf5 {[%clk 0:02:17]} 18. Bf6 {[%clk 0:01:48]}  Kf7 {[%clk 0:02:03]} 19. e6+ {[%clk 0:01:45]} 1-0


[Site "https://www.chess.com"]

[Event "Titled Tuesday Blitz August 08 Late 2023"]
[White "Fernandez Bustamante, Leancy B."]
[Black "Huber, Benedikt"]
[WhiteFideId "3523870"]
[BlackFideId "12923583"]
[WhiteElo "2195"]
[BlackElo "2531"]
[Result "0-1"]
[Round "1"]
[TimeControl "180+1"]
[Date "2023.08.08"]
[WhiteClock "0:00:23"]
[BlackClock "0:01:13"]
[Board "173"]

1. e4 {[%clk 0:03:00]}  c5 {[%clk 0:02:48]} 2. Nf3 {[%clk 0:02:59]}  e6 {[%clk 0:02:48]} 3. c3 {[%clk 0:02:59]}  Nf6 {[%clk 0:02:46]} 4. e5 {[%clk 0:02:58]}  Nd5 {[%clk 0:02:46]} 5. d4 {[%clk 0:02:59]}  cxd4 {[%clk 0:02:46]} 6. cxd4 {[%clk 0:03:00]}  d6 {[%clk 0:02:46]} 7. Nc3 {[%clk 0:02:59]}  dxe5 {[%clk 0:02:45]} 8. Nxe5 {[%clk 0:02:58]}  Nc6 {[%clk 0:02:41]} 9. Nxc6 {[%clk 0:02:55]}  bxc6 {[%clk 0:02:41]} 10. Bd3 {[%clk 0:02:55]}  Bd6 {[%clk 0:02:40]} 11. Ne4 {[%clk 0:02:44]}  Bb4+ {[%clk 0:02:39]} 12. Bd2 {[%clk 0:02:44]}  O-O {[%clk 0:02:32]} 13. O-O {[%clk 0:02:40]}  Qb6 {[%clk 0:02:24]} 14. Be3 {[%clk 0:02:06]}  Ba6 {[%clk 0:02:16]} 15. Ng5 {[%clk 0:01:52]}  h6 {[%clk 0:02:08]} 16. Nf3 {[%clk 0:01:29]}  Bd6 {[%clk 0:02:01]} 17. Bxa6 {[%clk 0:01:20]}  Qxa6 {[%clk 0:02:01]} 18. Ne5 {[%clk 0:01:19]}  Bxe5 {[%clk 0:01:58]} 19. dxe5 {[%clk 0:01:20]}  Nxe3 {[%clk 0:01:58]} 20. fxe3 {[%clk 0:01:20]}  Rad8 {[%clk 0:01:55]} 21. Qc2 {[%clk 0:01:14]}  Rd5 {[%clk 0:01:49]} 22. Rfc1 {[%clk 0:01:07]}  Rxe5 {[%clk 0:01:41]} 23. Qxc6 {[%clk 0:01:03]}  Qe2 {[%clk 0:01:40]} 24. Rc3 {[%clk 0:00:52]}  Rd8 {[%clk 0:01:30]} 25. h3 {[%clk 0:00:45]}  Rd2 {[%clk 0:01:28]} 26. Rf1 {[%clk 0:00:34]}  Rg5 {[%clk 0:01:17]} 27. Qa8+ {[%clk 0:00:27]}  Kh7 {[%clk 0:01:16]} 28. Qe4+ {[%clk 0:00:27]}  f5 {[%clk 0:01:15]} 29. Qf3 {[%clk 0:00:25]}  Rxg2+ {[%clk 0:01:13]} 30. Kh1 {[%clk 0:00:24]}  Rh2+ {[%clk 0:01:12]} 31. Kg1 {[%clk 0:00:24]}  Qg2+ {[%clk 0:01:13]} 32. Qxg2 {[%clk 0:00:23]}  Rdxg2# {[%clk 0:01:13]} 0-1


[Site "https://www.chess.com"]

[Event "Titled Tuesday Blitz August 08 Late 2023"]
[White "Dobrikov, Marco"]
[Black "Francisco_Ferrari"]
[WhiteFideId "12950378"]
[WhiteElo "2529"]
[BlackElo "2182"]
[Result "1-0"]
[Round "1"]
[TimeControl "180+1"]
[Date "2023.08.08"]
[WhiteClock "0:01:37"]
[BlackClock "0:00:17"]
[Board "174"]

1. d4 {[%clk 0:03:00]}  Nf6 {[%clk 0:02:57]} 2. Bf4 {[%clk 0:03:00]}  g6 {[%clk 0:02:56]} 3. e3 {[%clk 0:02:59]}  Bg7 {[%clk 0:02:55]} 4. c3 {[%clk 0:02:59]}  O-O {[%clk 0:02:56]} 5. Nd2 {[%clk 0:02:59]}  d6 {[%clk 0:02:55]} 6. h3 {[%clk 0:02:59]}  Nc6 {[%clk 0:02:56]} 7. Bh2 {[%clk 0:03:00]}  e5 {[%clk 0:02:56]} 8. Ngf3 {[%clk 0:03:00]}  Qe7 {[%clk 0:02:50]} 9. Be2 {[%clk 0:02:57]}  Nd7 {[%clk 0:02:48]} 10. O-O {[%clk 0:02:57]}  f5 {[%clk 0:02:48]} 11. b4 {[%clk 0:02:55]}  f4 {[%clk 0:02:18]} 12. Bc4+ {[%clk 0:02:45]}  Kh8 {[%clk 0:02:16]} 13. exf4 {[%clk 0:02:40]}  exd4 {[%clk 0:02:16]} 14. cxd4 {[%clk 0:02:36]}  Nb6 {[%clk 0:02:13]} 15. Re1 {[%clk 0:02:31]}  Qd8 {[%clk 0:02:07]} 16. Bb3 {[%clk 0:02:21]}  Nxb4 {[%clk 0:02:04]} 17. Ne4 {[%clk 0:02:12]}  Bf5 {[%clk 0:01:57]} 18. Neg5 {[%clk 0:02:09]}  d5 {[%clk 0:01:37]} 19. Ne5 {[%clk 0:02:04]}  Bxe5 {[%clk 0:01:14]} 20. dxe5 {[%clk 0:02:05]}  c5 {[%clk 0:01:09]} 21. e6 {[%clk 0:02:02]}  Qf6 {[%clk 0:01:00]} 22. g4 {[%clk 0:01:54]}  Bd3 {[%clk 0:00:54]} 23. a3 {[%clk 0:01:51]}  Nc6 {[%clk 0:00:40]} 24. Qxd3 {[%clk 0:01:51]}  c4 {[%clk 0:00:40]} 25. Qd1 {[%clk 0:01:45]}  cxb3 {[%clk 0:00:39]} 26. Qxb3 {[%clk 0:01:46]}  Nd4 {[%clk 0:00:40]} 27. Qd3 {[%clk 0:01:44]}  h6 {[%clk 0:00:37]} 28. Nf7+ {[%clk 0:01:44]}  Kg7 {[%clk 0:00:32]} 29. f5 {[%clk 0:01:41]}  Qh4 {[%clk 0:00:17]} 30. Qxd4+ {[%clk 0:01:37]} 1-0


[Site "https://www.chess.com"]